Cogmind - Beta 13 @@@ ROGUE MODE // 2024.08.05 @ 16:54:02 // Winter2019/RPGLIKE Player: badjay Result: Destroyed by H-61 Shepherd with Heavy Assault Cannon Performance ------------- Evolutions (2) 1000 Regions Visited (3) 600 Robots Destroyed (37) 185 Value Destroyed (1334) 1334 Prototype IDs (15) 300 Alien Tech Used (0) 0 Bonus (195) 195 TOTAL SCORE: 3614 Bonus ------- High Alert Combat Kills 22 Follower Combat Kills 173 Cogmind --------- Core Integrity 0/600 Matter 300/300 Energy 89/100 System Corruption 0% Temperature Cool (2) Movement Flying (34) Location -8/Materials Parts ------- > --- POWER (1) -------- (None) > --- PROPULSION (2) --- Flight Unit Cesium-ion Thruster > --- UTILITY (3) ------ Melee Analysis Suite Melee Analysis Suite > --- WEAPON (4) ------- Greatsword > --- INVENTORY (2) ---- Improved Signal Interpreter Target Analyzer Peak State ------------ > --- POWER ------------ Nuclear Core > --- PROPULSION ------- Flight Unit Cesium-ion Thruster > --- UTILITY ---------- Melee Analysis Suite Melee Analysis Suite Reaction Control System > --- WEAPON ----------- Greatsword Greatsword > --- INVENTORY -------- Light Ion Engine Improved Signal Interpreter [Rating: 32] Favorites ----------- Power Subdweller Power Source Engine Subdweller Power Source Power Core Light Nuclear Core Propulsion Flight Unit Leg Myomer Leg Wheel Compact Wheel Flight Unit Flight Unit Utility Melee Analysis Suite Device V3-11A's Pendant Processor Melee Analysis Suite Protection Light Armor Plating Weapon Heavy Hammer Launcher Grenade Launcher Impact Weapon Heavy Hammer Slashing Weapon Greatsword Build | -11 -10 -10 -8 ------- Run | Yrd Mat Sub Mat Slots Evolved 6 | . 2 . 4 Power . | . . . . Propulsion 1 | . 1 . . Utility 2 | . . . 2 Weapon 3 | . 1 . 2 Parts Attached 27 | . 4 7 16 Power 4 | . . 1 3 Engine 2 | . . 1 1 Core 2 | . . . 2 Reactor . | . . . . Propulsion 12 | . 1 5 6 Treads . | . . . . Leg 1 | . . 1 . Wheel 5 | . 1 4 . Hover . | . . . . Flight 6 | . . . 6 Utility 5 | . . 1 4 Device 2 | . . 1 1 Storage . | . . . . Processor 2 | . . . 2 Hackware . | . . . . Protection 1 | . . . 1 Artifact . | . . . . Weapon 6 | . 3 . 3 Energy Gun . | . . . . Energy Cannon . | . . . . Ballistic Gun . | . . . . Ballistic Cannon . | . . . . Launcher 1 | . 1 . . Special Weapon . | . . . . Impact Weapon 2 | . 2 . . Slashing Weapon 3 | . . . 3 Piercing Weapon . | . . . . Special Melee Weapon . | . . . . Unidentified Prototypes 2 | . . 1 1 Parts Lost 1 | . . . 1 Power . | . . . . Propulsion . | . . . . Utility 1 | . . . 1 Weapon . | . . . . Highest Loss Streak 1 | . . . 1 To Critical Strikes . | . . . . Average Slot Usage (%) 67 | . 32 84 72 Engine 5 | . . 8 5 Core 2 | . . . 5 Wheel 13 | . 6 30 3 Flight 6 | . . . 15 Device 8 | . . 11 10 Processor 4 | . . . 10 Launcher 1 | . 5 . . Impact Weapon 18 | . 20 33 6 Slashing Weapon 5 | . . . 13 Naked Turns 14 | . 14 . . Heaviest Build 18 | . 6 12 18 Greatest Support 36 | 3 16 36 36 Greatest Overweight (x) 1 | . 1 1 1 Average Overweight (x) . | . . . . Largest Inventory Capacity 2 | . . . 2 Average Capacity . | . . . 1 Most Carried 2 | . . . 2 Average Carried . | . . . 1 Final Capacity 2 | . . . 2 Final Carried 2 | . . . 2 Class Distribution -------------------- 90% | Hacker-Gladiator 8% | Hacker-Mutant Dominant Class ---------------- Hacker-Gladiator | -10/Materials Hacker-Gladiator | -10/Subcaves Hacker-Gladiator | -8/Materials Resources | -11 -10 -10 -8 ----------- Run | Yrd Mat Sub Mat Matter Collected 540 | 200 110 70 160 Remotely . | . . . . Salvage Created 1393 | . 67 56 1270 Parts 68 | . 1 4 63 Haulers Intercepted . | . . . . Recyclers Shooed . | . . . . Parts Field Recycled . | . . . . Retrieved Matter . | . . . . Parts Self-Destructed 8 | . . 8 . Prevented . | . . . . Kills | -11 -10 -10 -8 ------- Run | Yrd Mat Sub Mat Combat Hostiles Destroyed 32 | . 3 2 27 Melee 27 | . 1 1 25 AOE 1 | . 1 . . Classes Destroyed 5 | . 2 1 2 Watcher 5 | . 1 . 4 Swarmer 7 | . . . 7 Grunt 17 | . 3 1 13 Sentry 7 | . . . 7 Subdweller 1 | . . 1 . Best Kill Streak 5 | . 2 1 5 Combat Bots Only 5 | . 2 1 5 Max Kills in Single Turn 1 | . 1 1 1 Gunslinging . | . . . . Exploded 1 | . 1 . . Melee 1 | . 1 1 1 Uniques/NPCs Destroyed . | . . . . Combat | -11 -10 -10 -8 -------- Run | Yrd Mat Sub Mat Hostile Shots Fired 201 | . 16 25 160 Missed 73 | . 4 2 67 Damage Taken 2242 | . 149 603 1490 Core 1895 | . 133 567 1195 Absorbed by Shields . | . . . . Redirected to Core 1142 | . 55 133 954 Core Remaining (%) 93 | 100 . 87 . Volleys Fired 7 | . 7 . . Largest 1 | . 1 . . Hottest 30 | . 30 . . Shots Fired 7 | . 7 . . Gun . | . . . . Cannon . | . . . . Launcher 7 | . 7 . . Special . | . . . . Kinetic . | . . . . Thermal . | . . . . Explosive 7 | . 7 . . Electromagnetic . | . . . . Robot Hit Streak 2 | . 2 . . Robot Miss Streak 2 | . 2 . . Penetration Max . | . . . . Secondary Targets . | . . . . Shots Hit Robots 100 | . 12 10 78 Core Hits 28 | . 3 . 25 Critical Kills 2 | . 1 . 1 Critical Parts Destroyed 2 | . . 1 1 Critical Strikes 13 | . 1 2 10 Smash 5 | . 1 2 2 Sever 8 | . . . 8 Melee Attacks 112 | . 10 10 92 Impact 32 | . 10 10 12 Slashing 80 | . . . 80 Piercing . | . . . . Sneak Attacks 1 | . . . 1 Combat Hostiles 1 | . . . 1 Follow-up Attacks 7 | . 1 1 5 Damage Inflicted 5159 | . 602 313 4244 Guns . | . . . . Cannons . | . . . . Explosions 282 | . 282 . . Melee 4877 | . 320 313 4244 Ramming . | . . . . Kinetic . | . . . . Thermal . | . . . . Explosive 282 | . 282 . . Electromagnetic . | . . . . Impact 996 | . 320 313 363 Slashing 3881 | . . . 3881 Piercing . | . . . . Highest Corruption . | . . . . Average Corruption . | . . . . Corruption Purged . | . . . . Corruption Blocked . | . . . . Overload Shots . | . . . . Overflow Damage 422 | . 24 54 344 Projectiles . | . . . . Explosions 2 | . 2 . . Melee 420 | . 22 54 344 Knockbacks 6 | . 2 2 2 Impact 6 | . 2 2 2 Kinetic . | . . . . Secondary . | . . . . Self-Inflicted Damage 15 | . 15 . . Shots 1 | . 1 . . Rammed . | . . . . Targets Rammed . | . . . . Kicked . | . . . . Crushed . | . . . . Highest Temperature 292 | . 5 . 292 Average Temperature 120 | . 5 . 123 Received Heat Transfer 720 | . 72 153 495 Siege Activations . | . . . . Robots Corrupted . | . . . . Combat Hostiles . | . . . . Parts Fried 7 | . 4 . 3 Impact Corruptions 7 | . 2 2 3 Robots Melted . | . . . . Combat Hostiles . | . . . . Parts Melted . | . . . . Heat Transferred . | . . . . Parts Sabotaged . | . . . . Parts Stolen . | . . . . Parts Stripped . | . . . . Power Chain Reactions . | . . . . Alert | -11 -10 -10 -8 ------- Run | Yrd Mat Sub Mat Peak Influence 465 | . 179 . 465 Initial 5 | . . . 5 Average 186 | . 116 . 228 Maximum Alert Level 2 | . . . 2 Low Security (%) 58 | 100 100 . 35 Level 1 39 | . . . 62 Level 2 1 | . . . 2 Level 3 . | . . . . Level 4 . | . . . . Level 5 . | . . . . High Security . | . . . . Max Security . | . . . . Squads Dispatched 6 | . 2 . 4 Investigation 2 | . 1 . 1 Extermination . | . . . . Reinforcement 4 | . 1 . 3 Assault . | . . . . Garrison . | . . . . Intercept . | . . . . Searches Triggered . | . . . . Construction Impeded . | . . . . Haulers Reinforced . | . . . . Active Scanning Responses . | . . . . Cargo Convoy Interrupts . | . . . . Stealth | -11 -10 -10 -8 --------- Run | Yrd Mat Sub Mat Distress Signals 2 | . . . 2 Communications Jammed . | . . . . Distress Signals . | . . . . Times Spotted 64 | . 6 19 39 Peak Tracking Total 6 | . 2 6 5 Tactical Retreats 2 | . 1 . 1 Traps | -11 -10 -10 -8 ------- Run | Yrd Mat Sub Mat Traps Triggered 1 | . 1 . . Indirectly . | . . . . Trap Hack Attempts . | . . . . Triggered . | . . . . Disarmed . | . . . . Reprogrammed . | . . . . Reused . | . . . . Traps Extracted . | . . . . Installed . | . . . . Triggered . | . . . . Machines | -11 -10 -10 -8 ---------- Run | Yrd Mat Sub Mat Machines Disabled 3 | . 2 . 1 Max in Single Turn 1 | . 1 . . Garrison Access 1 | . . . 1 Machines Repaired . | . . . . Machines Dismantled . | . . . . Machines Sabotaged . | . . . . Overloaded Fab Kills . | . . . . Hacking | -11 -10 -10 -8 --------- Run | Yrd Mat Sub Mat Machines Accessed 21 | . 8 . 13 Terminals 18 | . 8 . 10 Fabricators . | . . . . Repair Stations . | . . . . Recycling Units . | . . . . Scanalyzers 2 | . . . 2 Garrison Access 1 | . . . 1 Total Hacks 95 | . 37 . 58 Successful 64 | . 23 . 41 Failed 30 | . 13 . 17 Catastrophic 5 | . 3 . 2 Database Lockouts 1 | . 1 . . Manual 53 | . 24 . 29 Terminals 86 | . 37 . 49 Fabricators . | . . . . Repair Stations . | . . . . Recycling Units . | . . . . Scanalyzers 6 | . . . 6 Garrison Access 3 | . . . 3 Terminal Hacks 37 | . 15 . 22 Robot Analysis 3 | . 1 . 2 Prototype ID Bank 9 | . 4 . 5 Level Access Points 2 | . 1 . 1 Branch Access Points 2 | . 1 . 1 Terminal Index 2 | . 1 . 1 Alert Level 8 | . 2 . 6 Unreport Threat 3 | . . . 3 Dispatch Records 1 | . . . 1 Hauler Manifests 3 | . 1 . 2 Registered Components 2 | . 2 . . Registered Prototypes 1 | . 1 . . Zone Layout 1 | . 1 . . Fabricator Hacks . | . . . . Repair Station Hacks . | . . . . Recycling Unit Hacks . | . . . . Scanalyzer 6 | . . . 6 Insert Component 3 | . . . 3 Analyze 3 | . . . 3 Garrison Access Hacks 1 | . . . 1 Seal Access 1 | . . . 1 Unauthorized Hacks 20 | . 8 . 12 Terminals 18 | . 8 . 10 Track 3 | . 2 . 1 Assimilate 2 | . 1 . 1 Botnet 7 | . 3 . 4 Disrupt 4 | . 1 . 3 Operators 2 | . 1 . 1 Fabricators . | . . . . Repair Stations . | . . . . Recycling Units . | . . . . Scanalyzers . | . . . . Garrison Access 2 | . . . 2 Broadcast 1 | . . . 1 Watchers 1 | . . . 1 Data Cores Recovered . | . . . . Used . | . . . . Hacking Detections 17 | . 7 . 10 Full Trace Events 1 | . . . 1 Feedback Events . | . . . . Feedback Blocked . | . . . . Robot Schematics Acquired . | . . . . Robots Built . | . . . . Authchips . | . . . . Time . | . . . . Total Robot Build Rating . | . . . . Part Schematics Acquired 3 | . . . 3 Parts Built . | . . . . Authchips . | . . . . Time . | . . . . Total Part Build Rating . | . . . . Parts Repaired . | . . . . Time . | . . . . Parts Recycled . | . . . . Recycled Matter . | . . . . Retrieved Matter . | . . . . Retrieved Components . | . . . . Parts Scanalyzed 3 | . . . 3 Part Schematics Acquired 3 | . . . 3 Parts Damaged 1 | . . . 1 Bothacking | -11 -10 -10 -8 ------------ Run | Yrd Mat Sub Mat Used RIF Installer . | . . . . Robots Hacked . | . . . . Non-combat . | . . . . Combat . | . . . . Robot Hacks Applied . | . . . . Relay Couplers Released . | . . . . Fabnet Peak Effective % . | . . . . Robots Rewired . | . . . . Allies Hacked . | . . . . Hacks Repelled . | . . . . Allies | -11 -10 -10 -8 -------- Run | Yrd Mat Sub Mat Total Allies 6 | . . 5 1 Largest Group 3 | . . 3 3 Highest-Rated Group 57 | . . 57 57 Highest-Rated Ally 19 | . . 19 19 Total Orders . | . . . . Ally Attacks 36 | . . 4 32 Total Damage 708 | . . 174 534 Kills 12 | . . 2 10 Allies Corrupted . | . . . . Allies Melted . | . . . . Intel | -11 -10 -10 -8 ------- Run | Yrd Mat Sub Mat Robot Analysis Total 3 | . 1 . 2 Derelict Logs Recovered . | . . . . Drone Launches . | . . . . Drone Recoveries . | . . . . Exploration | -11 -10 -10 -8 ------------- Run | Yrd Mat Sub Mat Turns Passed 2227 | 16 509 763 939 Spaces Moved 2507 | 31 595 630 1251 Core 471 | 31 439 1 . Treads . | . . . . Legs . | . . . . Wheels 894 | . 156 629 109 Hover . | . . . . Flight 1142 | . . . 1142 Fastest Speed 34 | 50 50 100 34 Average Speed 65 | 50 72 104 42 Slowest Speed 120 | 50 100 110 120 Overloaded Moves . | . . . . Propulsion Burnouts . | . . . . Robots Hopped 4 | . . . 4 Cave-ins Triggered . | . . . . Exploration Rate (%) 57 | 3 97 34 95 Regions Visited 3 Branch Regions 1 Pre-discovered Areas . | . . . . Known Exits Taken . | . . . . Unknown Exits Taken 3 | 1 1 1 . Scrap Searched 3 | . . 3 . Spaces Dug . | . . . . Terrain Destroyed 33 | . 33 . . Melee . | . . . . Projectile . | . . . . AOE 33 | . 33 . . Terrain Rammed . | . . . . Walls Destroyed . | . . . . Machines Disabled . | . . . . Actions | -11 -10 -10 -8 --------- Run | Yrd Mat Sub Mat Total 2895 | 30 651 717 1497 Wait 163 | . 32 35 96 Move 2497 | 30 594 629 1244 Hop 3 | . . . 3 Pick Up 7 | . . . 7 Fast Attach 23 | . 4 7 12 Attach 1 | . . . 1 Detach 1 | . . . 1 Swap 3 | . . . 3 Drop 24 | . 1 4 19 Fire 7 | . 7 . . Melee 98 | . 8 9 81 Ram . | . . . . Kick . | . . . . Crush . | . . . . Escape Stasis . | . . . . Rewire . | . . . . Trap . | . . . . Miscellaneous 68 | . 5 33 30 Route ------- -11/Scrapyard -10/Materials (discovered 5 exits: *Mat x3 / *Min / [*Sub]) -10/Subcaves -8/Materials (discovered 3 exits: *Fac x3) History --------- Turn | Location | Event 3 | -11/Scrapyard | Discovered new exit (range 16) 17 | -11/Scrapyard | Entered Materials 45 | -10/Materials | Upgraded with Propulsion slot (x1) 45 | -10/Materials | Upgraded with Weapon slot (x1) 47 | -10/Materials | Identified exit to Mines 75 | -10/Materials | Identified exit to Materials 277 | -10/Materials | Central database locked down 516 | -10/Materials | Discovered new exit (range 11) 518 | -10/Materials | Build established: Hacker-Gladiator 526 | -10/Materials | Entered Subcaves 528 | -10/Subcaves | Reached level 2 580 | -10/Subcaves | Ambushed by swarm of Subdwellers 592 | -10/Subcaves | Core integrity fell below 50% 734 | -10/Subcaves | Visited triangular shrine 740 | -10/Subcaves | Found Prototype Device 740 | -10/Subcaves | Identified V3-11A's Pendant 745 | -10/Subcaves | Befriended Subdweller 947 | -10/Subcaves | A Subdweller sparked back to life 947 | -10/Subcaves | A Subdweller sparked back to life 1116 | -10/Subcaves | Approached by friendly Subdweller 1186 | -10/Subcaves | Discovered new exit (range 15) 1215 | -10/Subcaves | Befriended Subdweller 1220 | -10/Subcaves | Befriended Subdweller 1220 | -10/Subcaves | Befriended Subdweller 1244 | -10/Subcaves | Lost 3 allies 1289 | -10/Subcaves | Entered Materials 1289 | -8/Materials | Accompanied by 3 allies 1291 | -8/Materials | Reached level 3 1292 | -8/Materials | Upgraded with Utility slot (x2) 1337 | -8/Materials | Identified exit to Factory 1397 | -8/Materials | Reached level 4 1513 | -8/Materials | Lost 3 allies 1624 | -8/Materials | Reached level 5 1656 | -8/Materials | Upgraded with Weapon slot (x2) 1750 | -8/Materials | Core integrity fell below 50% 2007 | -8/Materials | Reached level 6 2217 | -8/Materials | Core integrity fell below 20% 2228 | -8/Materials | Destroyed by H-61 Shepherd with Heavy Assault Cannon Last Messages --------------- >>Scanalyze Scanning: Imp. Signal Interpreter... Schematic downloaded. 02190_ Connecting with Terminal... >>Trojan(Disrupt) Trojan loaded successfully. Testing... Disruption routine running. 02204_ Slug penetrates Wall. 02206_ H-61 Shepherd calls for reinforcements. 02206_ ALERT: Hostile activity reported, dispatching reinforcements to area. 02206_ Slug penetrates Wall. 02208_ Penetrated by Slug. 02208_ Knocked back. 02216_ Penetrated by Slug. 02222_ Knocked back. 02226_ Lgt. Nuclear Core blasted off. 02226_ Knocked back. 02228_ Reaction Control System destroyed. Map ----- +----------------------------------------------------+ | ####?????????????????# #??# #? # | | #######???????????#[ """"" #### # // # | | ## # #???????????# """"" + # / # | | ?# # " #???????????# """"" #### + # | | ?# # T #???????????# #??# # # | | ?# # " #???????????# #??# # # | | ## # #???????????# "" #??# #? # | | # """ #???????????# S"" =#??# #? # | | + """ #???????????# "" #??# #??### | | # """ #???????????#####+####??# #????? | | #### #?????????????# ##### #????? | | ???# #?????????????# " #????? | | ???# #?????????????# "T #????? | | #??# ! #?????????????# #????? | | #??#######?????????????# ##### #????? | | #??????????????????????###+####### #????? | | #??????????????????????# # #????? | | #??????????????????????# + #????? | | ???????????????????????# # #????? | | ???????????????????????# # #????? | | ???????????????????????####;#+##"" #????? | | ???????????????????????# % #????? | | ??????????????????????## % #????? | | ??????????????????????#%% #????? | | ???????????????????????#%< ##+########????? | | ???????????????????????# @H#??????????????? | | ???????????????????????#;;##??????????????? | | ???????????????????????####???????????????? | | ??????????????????????????????????????????? | | ??????????????????????????????????????????? | | ??????????????????????????????????????????? | | ??????????????????????????????????????????? | | | | | | | | | | | | | | | | | | | | | | | | | | | | | | | | | | | | | +----------------------------------------------------+ Best States ------------- Heat Dissipation 25 Energy Generation 15 Energy Capacity 240 Matter Stores 300 Matter Capacity 300 Sight Range 16 Terrain Scan Density 10 Armor Coverage 150 Evasion (%) 71 Melee Accuracy 10 Offensive Hacking 15 Defensive Hacking 10 Item Schematics ----------------- Greatsword | -8/Materials | Scanalyzed Target Analyzer | -8/Materials | Scanalyzed Imp. Signal Interpreter | -8/Materials | Scanalyzed Robot Schematics ------------------ None Fabricated ------------ Nothing Alien Tech Used ----------------- None Achievements -------------- None Challenges ------------ None RPGLIKE | -11 -10 -10 -8 --------- Run | Yrd Mat Sub Mat Levels Raised 5 | . . 1 4 XP Earned 11492 | 3000 810 1170 6512 XP Spent 10250 | . 2900 1400 5950 Upgrades 21 | . 7 4 10 Propulsion Slot 1 | . 1 . . Utility Slot 2 | . . . 2 Weapon Slot 3 | . 1 . 2 Mass Support 2 | . . . 2 Inventory Capacity 2 | . . . 2 Melee Accuracy 6 | . . 4 2 Hack Attack % 3 | . 3 . . Hack Defense % 2 | . 2 . . Protomatter Created 282 | . 18 35 229 Integrity Restored 1337 | . 69 631 637 Core 1246 | . 68 555 623 Parts 91 | . 1 76 14 Protomatter Decayed 372 | . 172 122 78 Game ------ Seed GatlingCombatFlamer Manual? 0 Play Time 00:32:57 Cumulative 158.5 hours Start 2024.08.05 @ 13:09:50 End 2024.08.05 @ 16:54:02 Sessions 2 Manual Loads 0 Difficulty Rogue Special Mode Winter2019/RPGLIKE Game No. 164 Rogue 164 Adventurer 0 Explorer 0 Win Type - Total 13 Types 11/0/0/1/0/0/1/0/0 Lore% 64 Gallery% 65 Achievement% 68 Wizard Run 0 Options --------- Layout 1 ASCII 0 Keyboard 0 Movement Numpad Keybinds 0 Fullscreen 1 Font 24/Smallcaps Map View 50x35 Zoom Use 0% Tactical HUD 1 Map Filters NONE Filters NONE Steam 1 RUN: b50b11a0-0689-4acc-a381-6d63b1151b74